Cogmind - Beta 15 @@@ ROGUE MODE // 2025.09.18 @ 04:51:33 Player: Kotyk77 Result: Destroyed by G-47 Trooper with Particle Gun Performance ------------- Evolutions (2) 1000 Regions Visited (5) 1000 Robots Destroyed (64) 320 Value Destroyed (1758) 1758 Prototype IDs (5) 100 Alien Tech Used (0) 0 Bonus (242) 242 TOTAL SCORE: 4420 Bonus ------- Follower Combat Kills 42 Entered Garrisons 200 Cogmind --------- Core Integrity 0/550 Matter 241/300 Energy 82/100 System Corruption 12% Temperature Warm (104) Movement Core (400) Ox7 Location -8/Garrison Parts ------- > --- POWER (1) -------- (None) > --- PROPULSION (3) --- (None) > --- UTILITY (4) ------ Large Storage Unit Signal Interpreter Transport Network Coupler > --- WEAPON (3) ------- Advanced Beam Cannon > --- INVENTORY (15) --- Ion Engine Light Ion Engine Light Ion Engine Light Ion Engine Light Ion Engine Light Ion Engine Light Nuclear Core Weight Redist. System Improved EM Shotgun Advanced Beam Cannon Advanced Beam Cannon Light Assault Rifle Light Cannon Peak State ------------ > --- POWER ------------ Light Angular Momentum Engine > --- PROPULSION ------- Aluminum Leg Carbon-fiber Leg Carbon-fiber Leg > --- UTILITY ---------- Large Storage Unit Weight Redist. System Signal Interpreter Terrain Scanner > --- WEAPON ----------- Advanced Beam Cannon Enhanced Autogun Great Maul > --- INVENTORY -------- Ion Engine Ion Engine Light Ion Engine Light Ion Engine Light Ion Engine Light Ion Engine Improved Ion Engine Reinforced Ion Engine Light Nuclear Core Hardened Medium Armor Plating Improved EM Shotgun Improved Medium Laser Improved Medium Laser Advanced Beam Cannon Advanced Beam Cannon [Rating: 30] Favorites ----------- Power Light Nuclear Core Engine Light Angular Momentum Engine Power Core Light Nuclear Core Propulsion Compact Wheel Leg Aluminum Leg Wheel Compact Wheel Utility Large Storage Unit Device Weight Redist. System Storage Large Storage Unit Processor Signal Interpreter Protection Hardened Light Armor Plating Weapon Enhanced Autogun Energy Gun Improved EM Shotgun Energy Cannon Advanced Beam Cannon Ballistic Gun Enhanced Autogun Ballistic Cannon Light Cannon Launcher Grenade Launcher Special Weapon Mining Laser Impact Weapon Great Maul Build | -11 -10 -9 -8 -8 -8 ------- Run | Yrd Mat Mat Mat Sto Gar Slots Evolved 4 | . . 2 2 . . Power . | . . . . . . Propulsion 1 | . . . 1 . . Utility 2 | . . 2 . . . Weapon 1 | . . . 1 . . Parts Attached 56 | 6 13 14 8 14 1 Power 7 | 1 1 1 1 3 . Engine 5 | 1 . 1 1 2 . Core 2 | . 1 . . 1 . Reactor . | . . . . . . Propulsion 15 | 2 2 4 4 3 . Treads . | . . . . . . Leg 7 | . . . 4 3 . Wheel 8 | 2 2 4 . . . Hover . | . . . . . . Flight . | . . . . . . Utility 13 | 1 6 4 . 2 . Device 4 | . 1 3 . . . Storage 5 | 1 4 . . . . Processor 2 | . 1 . . 1 . Hackware . | . . . . . . Protection 2 | . . 1 . 1 . Artifact . | . . . . . . Weapon 21 | 2 4 5 3 6 1 Energy Gun 4 | . 1 2 1 . . Energy Cannon 4 | . . 3 . . 1 Ballistic Gun 6 | 2 1 . . 3 . Ballistic Cannon 1 | . . . . 1 . Launcher 4 | . 2 . . 2 . Special Weapon 1 | . . . 1 . . Impact Weapon 1 | . . . 1 . . Slashing Weapon . | . . . . . . Piercing Weapon . | . . . . . . Special Melee Weapon . | . . . . . . Unidentified Prototypes 5 | . . 3 . 2 . Corrupted Parts 2 | . . . . 2 . System Corruption 11 | . . . . 11 . Parts Lost 30 | . 2 9 4 7 8 Power 3 | . . 1 . 1 1 Propulsion 11 | . 1 4 1 3 2 Utility 6 | . . 2 1 2 1 Weapon 10 | . 1 2 2 1 4 Highest Loss Streak 8 | . 2 4 2 7 8 To Critical Strikes . | . . . . . . Average Backups 13 | 1 13 14 14 13 14 Power 5 | . 2 5 8 6 7 Propulsion 2 | . 5 1 . . . Utility . | . 1 1 . . 1 Weapon 5 | . 3 5 5 6 6 Tool/Special . | . . . . . . Unused Backups 19 | . 6 3 . 1 9 Power 8 | . . 1 . . 7 Propulsion 3 | . 3 . . . . Utility 2 | . 1 . . . 1 Weapon 6 | . 2 2 . 1 1 Tool/Special . | . . . . . . Average Slot Usage (%) 93 | . 97 94 91 86 94 Engine 5 | . 1 7 9 6 . Core 5 | . 12 3 . 2 8 Leg 9 | . . . 18 19 24 Wheel 14 | . 27 21 6 . . Device 10 | . 11 17 12 6 . Storage 11 | . 14 11 9 9 9 Processor 7 | . . 11 9 10 18 Protection 3 | . . 3 5 5 7 Energy Gun 2 | . . 1 8 1 . Energy Cannon 1 | . . 4 . 1 . Ballistic Gun 15 | . 24 9 . 19 17 Launcher 2 | . 2 4 2 . . Impact Weapon 1 | . . . 6 2 . Peak Build Rating 30 | 6 13 17 28 30 25 Average Rating 17 | 4 11 14 22 25 23 On Entrance 14 | . 6 10 16 28 25 Naked Turns . | . . . . . . Heaviest Build 50 | 13 50 42 42 42 42 Greatest Support 46 | 26 32 38 46 46 35 Greatest Overweight (x) 7 | . 4 1 2 2 7 Average Overweight (x) . | . . . . . 1 Largest Inventory Capacity 25 | 8 25 15 15 15 15 Average Capacity 14 | 6 15 15 15 15 15 Most Carried 20 | 4 20 15 15 15 15 Average Carried 13 | 1 13 14 14 13 14 Final Capacity 15 | 8 15 15 15 15 15 Final Carried 15 | 4 15 15 14 15 13 Class Distribution -------------------- 55% | Mutant 19% | Scavenger-Mutant 11% | Tank 11% | Scavenger-Tank Dominant Class ---------------- Mutant | -10/Materials Mutant | -9/Materials Scavenger-Mutant | -8/Materials Tank | -8/Storage Scavenger-Tank | -8/Garrison Resources | -11 -10 -9 -8 -8 -8 ----------- Run | Yrd Mat Mat Mat Sto Gar Matter Collected 1534 | 254 165 452 201 462 . Remotely . | . . . . . . Salvage Created 2210 | . 231 588 437 908 46 Parts 113 | . 20 32 13 41 7 Haulers Intercepted 4 | . . 2 . 2 . Recyclers Shooed 2 | . . . . 2 . Parts Field Recycled . | . . . . . . Retrieved Matter . | . . . . . . Parts Self-Destructed . | . . . . . . Prevented . | . . . . . . Kills | -11 -10 -9 -8 -8 -8 ------- Run | Yrd Mat Mat Mat Sto Gar Combat Hostiles Destroyed 48 | . 6 13 8 19 2 Melee 1 | . . . 1 . . Guns 33 | . 4 7 7 14 1 Cannons 4 | . . 4 . . . AOE 10 | . 2 2 . 5 1 Classes Destroyed 11 | . 4 4 1 1 1 Worker 1 | . . . . 1 . Builder 4 | . 2 1 1 . . Hauler 4 | . . 2 . 2 . Recycler 3 | . 1 1 . 1 . Mechanic 2 | . . 1 . 1 . Watcher 2 | . 1 . 1 . . Swarmer 14 | . . 4 2 8 . Grunt 29 | . 6 8 5 10 . Brawler 2 | . . 1 . 1 . Protector 1 | . . . . . 1 Sentry 2 | . . . 1 . 1 Best Kill Streak 14 | . 6 5 3 14 2 Combat Bots Only 13 | . 4 5 3 13 2 Max Kills in Single Turn 5 | . 1 2 1 5 1 Gunslinging 1 | . . . . 1 . Exploded 5 | . 1 1 . 5 1 Melee 1 | . . . 1 . . Uniques/NPCs Destroyed . | . . . . . . Combat | -11 -10 -9 -8 -8 -8 -------- Run | Yrd Mat Mat Mat Sto Gar Hostile Shots Fired 366 | . 40 83 81 96 66 Missed 100 | . 13 27 22 22 16 Hits 266 | . 27 56 59 74 50 Melee 1 | . . 1 . . . Projectile 265 | . 27 55 59 74 50 AOE 8 | . . . . . 8 Critical Strikes 6 | . . . 2 2 2 Damage Taken 3978 | . 391 628 865 1062 1032 Core 709 | . 80 76 137 127 289 Absorbed by Shields . | . . . . . . Core Remaining (%) 83 | 100 68 81 . . . Volleys Fired 155 | . 24 50 36 37 8 Largest 3 | . 2 2 3 3 3 Hottest 186 | . 50 98 186 86 93 Shots Fired 269 | . 44 82 38 86 19 Gun 232 | . 37 62 36 85 12 Cannon 18 | . . 12 . . 6 Launcher 18 | . 7 8 1 1 1 Special 1 | . . . 1 . . Kinetic 196 | . 37 58 . 85 16 Thermal 16 | . . 12 2 . 2 Explosive 16 | . 7 8 1 . . Electromagnetic 41 | . . 4 35 1 1 Robot Hit Streak 12 | . 12 8 11 12 7 Robot Miss Streak 6 | . 2 5 5 3 6 Penetration Max . | . . . . . . Secondary Targets 4 | . 1 . . 3 . Max Gunslinging Chain 1 | . 1 . . 1 . Shots Hit Robots 179 | . 24 54 35 57 9 Core Hits 114 | . 25 29 20 35 5 Critical Kills 2 | . . 1 1 . . Critical Parts Destroyed . | . . . . . . Critical Strikes 2 | . . 1 1 . . Destroy 1 | . . 1 . . . Smash 1 | . . . 1 . . Melee Attacks 7 | . . . 4 3 . Impact 7 | . . . 4 3 . Slashing . | . . . . . . Piercing . | . . . . . . Sneak Attacks 2 | . . . 1 1 . Combat Hostiles . | . . . . . . Follow-up Attacks . | . . . . . . Damage Inflicted 4270 | . 664 987 821 1536 262 Guns 2415 | . 222 542 540 993 118 Cannons 196 | . . 144 . . 52 Explosions 1342 | . 439 297 87 427 92 Melee 289 | . . . 194 95 . Ramming 28 | . 3 4 . 21 . Kinetic 1847 | . 222 462 . 993 170 Thermal 453 | . . 144 87 222 . Explosive 736 | . 439 297 . . . Electromagnetic 917 | . . 80 540 205 92 Impact 289 | . . . 194 95 . Slashing . | . . . . . . Piercing . | . . . . . . Highest Corruption 12 | . . . . 12 12 Average Corruption 6 | . . . . 4 12 Corruption Purged . | . . . . . . Corruption Blocked . | . . . . . . Effects 6 | . . . . 3 3 Message Errors 1 | . . . . 1 . Matter Fused 1 | . . . . 1 . Heat Flow Errors 1 | . . . . . 1 Parts Rejected 1 | . . . . . 1 Data Loss (minor) 1 | . . . . 1 . Misfires 1 | . . . . . 1 Overload Shots . | . . . . . . Overflow Damage 134 | . . 19 50 65 . Projectiles . | . . . . . . Explosions 19 | . . 19 . . . Melee 115 | . . . 50 65 . Knockbacks 1 | . . . . 1 . Impact 1 | . . . . 1 . Kinetic . | . . . . . . Secondary . | . . . . . . Self-Inflicted Damage 137 | . 13 45 42 23 14 Shots 7 | . 1 3 1 1 1 Rammed 2 | . 1 1 . . . Targets Rammed 7 | . 1 1 . 5 . Kicked 5 | . . . . 5 . Crushed . | . . . . . . Highest Temperature 380 | . 9 380 213 284 157 Average Temperature 84 | . 7 132 62 86 69 Received Heat Transfer 1635 | . 216 222 333 540 324 Siege Activations . | . . . . . . Martial Activations . | . . . . . . Shielding Activations . | . . . . . . Robots Disrupted . | . . . . . . Combat Hostiles . | . . . . . . Robots Corrupted 2 | . . . 1 1 . Combat Hostiles . | . . . . . . Parts Fried 8 | . . 1 5 2 . Impact Corruptions 5 | . . . 3 2 . Robots Melted . | . . . . . . Combat Hostiles . | . . . . . . Parts Melted 1 | . . . . 1 . Heat Transferred 559 | . . 259 100 200 . Parts Sabotaged . | . . . . . . Parts Stolen . | . . . . . . Parts Stripped . | . . . . . . Power Chain Reactions 3 | . . . 1 2 . Alert | -11 -10 -9 -8 -8 -8 ------- Run | Yrd Mat Mat Mat Sto Gar Maximum Alert Level 1 | . . 1 . 1 1 Low Security (%) 80 | 100 100 88 100 41 11 Level 1 19 | . . 11 . 58 88 Level 2 . | . . . . . . Level 3 . | . . . . . . Level 4 . | . . . . . . Level 5 . | . . . . . . High Security . | . . . . . . Max Security . | . . . . . . Peak Influence 353 | . 142 216 156 353 233 Initial 213 | . . 39 85 70 213 Average 102 | . 26 90 112 204 210 Influence Increases 1651 | . 232 459 344 591 25 Destroy 0b10 Robot/C 980 | . 120 260 160 420 20 Destroy 0b10 Robot/NC 85 | . 20 25 10 25 5 Destroy Leader 172 | . 32 44 32 64 . Allied During Kill 4 | . . . . 4 . Successful Hack 19 | . . 8 11 . . Disable Machine 105 | . 45 15 15 30 . Destroy Structure 61 | . 15 32 11 3 . Lose Combat Pursuer 225 | . . 75 105 45 . Influence Decreases 1493 | . 138 351 379 429 196 Entered New Map 385 | . . 55 117 97 116 Time Decay 768 | . 118 206 222 222 . Lost Part 300 | . 20 90 40 70 80 Lost Ally 40 | . . . . 40 . Squads Dispatched 9 | . 1 2 1 5 . Investigation 3 | . . 2 1 . . Extermination . | . . . . . . Reinforcement 1 | . 1 . . . . Assault 2 | . . . . 2 . Garrison 3 | . . . . 3 . Intercept . | . . . . . . Searches Triggered . | . . . . . . Construction Impeded . | . . . . . . Haulers Reinforced . | . . . . . . Active Scanning Responses . | . . . . . . Cargo Convoy Interrupts . | . . . . . . Stealth | -11 -10 -9 -8 -8 -8 --------- Run | Yrd Mat Mat Mat Sto Gar Distress Signals 3 | . 1 . 1 1 . Communications Jammed . | . . . . . . Distress Signals . | . . . . . . Times Spotted 87 | . 9 20 21 28 9 Peak Tracking Total 9 | . 3 7 7 9 8 Tactical Retreats 8 | . . 3 4 1 . Traps | -11 -10 -9 -8 -8 -8 ------- Run | Yrd Mat Mat Mat Sto Gar Traps Triggered 4 | . 1 . . 1 2 Indirectly 1 | . . . . . 1 Trap Hack Attempts . | . . . . . . Triggered . | . . . . . . Disarmed . | . . . . . . Reprogrammed . | . . . . . . Reused . | . . . . . . Traps Extracted . | . . . . . . Installed . | . . . . . . Triggered . | . . . . . . Machines | -11 -10 -9 -8 -8 -8 ---------- Run | Yrd Mat Mat Mat Sto Gar Machines Disabled 7 | . 3 1 1 2 . Max in Single Turn 2 | . 2 1 1 2 . Machines Repaired . | . . . . . . Machines Dismantled . | . . . . . . Machines Sabotaged . | . . . . . . Overloaded Fab Kills . | . . . . . . Hacking | -11 -10 -9 -8 -8 -8 --------- Run | Yrd Mat Mat Mat Sto Gar Machines Accessed 10 | . 3 2 3 2 . Terminals 8 | . 3 1 3 1 . Fabricators . | . . . . . . Repair Stations . | . . . . . . Recycling Units . | . . . . . . Scanalyzers 1 | . . 1 . . . Garrison Access 1 | . . . . 1 . Total Hacks 24 | . 9 7 6 2 . Successful 12 | . 2 6 3 1 . Failed 10 | . 7 . 2 1 . Catastrophic 1 | . 1 . . . . Database Lockouts 2 | . . 1 1 . . Manual 15 | . 5 4 4 2 . Terminals 18 | . 9 2 6 1 . Fabricators . | . . . . . . Repair Stations . | . . . . . . Recycling Units . | . . . . . . Scanalyzers 5 | . . 5 . . . Garrison Access 1 | . . . . 1 . Terminal Hacks 6 | . 2 1 3 . . Record 1 | . . . 1 . . Robot Analysis 5 | . 2 1 2 . . Fabricator Hacks . | . . . . . . Repair Station Hacks . | . . . . . . Recycling Unit Hacks . | . . . . . . Scanalyzer 5 | . . 5 . . . Insert Component 3 | . . 3 . . . Analyze 2 | . . 2 . . . Garrison Access Hacks 1 | . . . . 1 . Unlock Access 1 | . . . . 1 . Unauthorized Hacks . | . . . . . . Terminals . | . . . . . . Fabricators . | . . . . . . Repair Stations . | . . . . . . Recycling Units . | . . . . . . Scanalyzers . | . . . . . . Garrison Access . | . . . . . . Data Cores Recovered . | . . . . . . Used . | . . . . . . Hacking Detections 9 | . 3 2 3 1 . Full Trace Events 6 | . 3 2 1 . . Feedback Events . | . . . . . . Feedback Blocked . | . . . . . . Robot Schematics Acquired . | . . . . . . Robots Built . | . . . . . . Authchips . | . . . . . . Time . | . . . . . . Total Robot Build Rating . | . . . . . . Part Schematics Acquired 2 | . . 2 . . . Parts Built . | . . . . . . Authchips . | . . . . . . Time . | . . . . . . Total Part Build Rating . | . . . . . . Parts Repaired . | . . . . . . Time . | . . . . . . Parts Recycled . | . . . . . . Recycled Matter . | . . . . . . Retrieved Matter . | . . . . . . Retrieved Components . | . . . . . . Parts Scanalyzed 2 | . . 2 . . . Part Schematics Acquired 2 | . . 2 . . . Parts Damaged . | . . . . . . Bothacking | -11 -10 -9 -8 -8 -8 ------------ Run | Yrd Mat Mat Mat Sto Gar Used RIF Installer . | . . . . . . Robots Hacked . | . . . . . . Non-combat . | . . . . . . Combat . | . . . . . . Robot Hacks Applied . | . . . . . . Relay Couplers Released . | . . . . . . Fabnet Peak Effective % . | . . . . . . Robots Rewired . | . . . . . . Allies Hacked . | . . . . . . Hacks Repelled . | . . . . . . Allies | -11 -10 -9 -8 -8 -8 -------- Run | Yrd Mat Mat Mat Sto Gar Total Allies 2 | . . . . 2 . Largest Group 2 | . . . . 2 . Highest-Rated Group 62 | . . . . 62 . Highest-Rated Ally 31 | . . . . 31 . Total Orders . | . . . . . . Ally Attacks 12 | . . . . 12 . Total Damage 210 | . . . . 210 . Kills 2 | . . . . 2 . Allies Corrupted . | . . . . . . Allies Melted . | . . . . . . Intel | -11 -10 -9 -8 -8 -8 ------- Run | Yrd Mat Mat Mat Sto Gar Active Infowar (turns) 525 | . . 10 168 229 118 Terrain 334 | . . 10 168 156 . T.N.C. 191 | . . . . 73 118 Robot Analysis Total 5 | . 2 1 2 . . Derelict Logs Recovered . | . . . . . . Drone Launches . | . . . . . . Drone Recoveries . | . . . . . . Exploration | -11 -10 -9 -8 -8 -8 ------------- Run | Yrd Mat Mat Mat Sto Gar Turns Passed 2294 | 59 731 430 477 479 118 Spaces Moved 1305 | 53 544 211 252 196 49 Core 2 | 1 . . . . 1 Treads . | . . . . . . Legs 459 | . . . 215 196 48 Wheels 844 | 52 544 211 37 . . Hover . | . . . . . . Flight . | . . . . . . Fastest Speed 50 | 50 90 90 115 120 190 Average Speed 127 | 87 110 104 145 174 194 Slowest Speed 400 | 90 145 115 260 260 400 Overloaded Moves . | . . . . . . Propulsion Burnouts . | . . . . . . Robots Hopped . | . . . . . . Potential Cave-ins . | . . . . . . Cave-ins Triggered . | . . . . . . Exploration Rate (%) 22 | 4 48 21 26 17 17 Regions Visited 5 Branch Regions 1 Pre-discovered Areas . | . . . . . . Known Exits Taken 4 | . 1 1 1 1 . Unknown Exits Taken 1 | 1 . . . . . Scrap Searched . | . . . . . . Spaces Dug 8 | . . . 8 . . Terrain Destroyed 66 | . 13 42 11 . . Melee . | . . . . . . Projectile 1 | . . . 1 . . AOE 65 | . 13 42 10 . . Terrain Rammed . | . . . . . . Walls Destroyed . | . . . . . . Machines Disabled . | . . . . . . Actions | -11 -10 -9 -8 -8 -8 --------- Run | Yrd Mat Mat Mat Sto Gar Total 1695 | 62 643 338 313 275 64 Wait 36 | . 1 30 4 1 . Move 1300 | 52 543 210 251 195 49 Hop . | . . . . . . Pick Up 70 | 4 39 16 2 9 . Fast Attach 26 | 6 5 3 6 6 . Attach 24 | . 3 11 4 4 2 Detach 2 | . . 1 . 1 . Swap 25 | . 9 8 2 6 . Drop 38 | . 18 8 4 8 . Fire 155 | . 24 50 36 37 8 Melee 7 | . . . 4 3 . Ram 2 | . 1 1 . . . Kick 5 | . . . . 5 . Crush . | . . . . . . Escape Stasis 5 | . . . . . 5 Rewire . | . . . . . . Trap . | . . . . . . Miscellaneous . | . . . . . . Route ------- -11/Scrapyard -10/Materials (discovered 2 exits: *Mat / [*Min]) -9/Materials (discovered 2 exits: *Mat / *Min) -8/Materials -8/Storage -8/Garrison History --------- Turn | Location | Event 11 | -11/Scrapyard | Discovered new exit (range 16) 60 | -11/Scrapyard | Entered Materials 200 | -10/Materials | Discovered new exit (range 15) 326 | -10/Materials | Build established: Mutant 678 | -10/Materials | Discovered new exit (range 15) 790 | -10/Materials | Identified exit to Materials 791 | -10/Materials | Entered another Materials area 791 | -9/Materials | Evolved 2 slots: Utility x2 1028 | -9/Materials | Discovered new exit (range 16) 1045 | -9/Materials | Lost 4 parts (1p1n2w) 1111 | -9/Materials | Central database locked down 1139 | -9/Materials | Identified exit to Mines 1178 | -9/Materials | Discovered new exit (range 16) 1194 | -9/Materials | Identified exit to Materials 1221 | -9/Materials | Entered another Materials area 1221 | -8/Materials | Evolved 2 slots: Propulsion x1, Weapon x1 1622 | -8/Materials | Discovered new exit (range 7) 1628 | -8/Materials | Identified exit to Storage 1644 | -8/Materials | Central database locked down 1647 | -8/Materials | Build established: Scavenger-Mutant 1698 | -8/Materials | Entered Storage 1710 | -8/Storage | Identified exit to Garrison 1786 | -8/Storage | Met a pair of Derelict thieves 1868 | -8/Storage | Garrison activated, responded to threat 1916 | -8/Storage | Lost 7 parts (1p3n2u1w) 1935 | -8/Storage | Destroyed 13 combat bots 2081 | -8/Storage | System corruption reached 10% 2177 | -8/Storage | Entered Garrison 2259 | -8/Garrison | Triggered checkpoint 2275 | -8/Garrison | Core integrity fell below 50% 2287 | -8/Garrison | Core integrity fell below 20% 2295 | -8/Garrison | Destroyed by G-47 Trooper with Particle Gun Last Messages --------------- 02268_ Y-45 Defender destroyed. Garrison Door activated. 02278_ Hrd. Medium Armor Plating destroyed. 02278_ Critical hit (Burn: +37). 02279_ ALERT: Dispatching investigation squad to Recycling. 02282_ Carbon-fiber Leg destroyed. 02282_ Enh. Autogun destroyed. 02282_ Lgt. Cannon destroyed. 02284_ Y-45 Defender destroyed. 02284_ I-25 Savior destroyed. 02284_ Stasis Trap short circuited. 02284_ A bubble of rippling energy engulfs the area. 02286_ Lgt. Nuclear Core destroyed. 02286_ D-53 Grenadier misfires. 02286_ G-47 Trooper destroyed. 02286_ Adv. EMP Blaster destroyed. 02288_ G-47 Trooper misfires. 02290_ Aluminum Leg destroyed. 02290_ Enh. Autogun destroyed. 02293_ Critical hit (Burn: +37). Map ----- +----------------------------------------------------+ | ?????????????????????????????????????????????????? | | ?????????????????????????????????????????????????? | | ?????????????????????????????????????????????????? | | ?????????????????????????????????????????????????? | | ?????????????????????????????????????????????????? | | ?????????????????????????????????????????????????? | | ?????????????????????????????????????????????????? | | ?????????????????????????????????????????????????? | | ?????????????????????????????????????????????????? | | ?????????????????????????????????????????????????? | | ???????#######^#?????????????????????????????????? | | ######## #?????????????????????????????????? | | ######?????????????????????????????????? | | #??????????????????????????????????????? | | ######## #??????????????????????????????????????? | | ???????# #??????????????????????????????????????? | | ???????# #?????????????###??????????????????????? | | ???????# #????????????? #??????????????????????? | | ???????# #?????????????# #???????#??????????????? | | ???????# #???????????### ####??? #??????????????? | | ???????# #???????????# #!%[ #?? #??????????????? | | ???????# #????????#### # =% ## #??????????????? | | ???????# ########## #??????????????? | | ???????# #??????????????? | | ???????# g #??????????????? | | ???????############# @ #??????????????? | | ???????????????????# g #??????????????? | | ?????????????????# gd #????????????? | | ?????????????????# = #????????????? | | ?????????????????# !%! g #????????????? | | ?????????????????# ! #????????????? | | ?????????????????### ^ ## ## ###????????????? | | ???????????????????# ## #? #??????????????? | | ???????????????????# ?? #??????????????? | | ???????????????????# ?? #??????????????? | | ???????????????????# ?? #??????????????? | | ???????????????????# ## ##??????????????????? | | ???????????????????# ## #???????????????????? | | ???????????????????# ??#####???????????????????? | | ?????????????????????????????????????????????????? | | ?????????????????????????????????????????????????? | | ?????????????????????????????????????????????????? | | ?????????????????????????????????????????????????? | | ?????????????????????????????????????????????????? | | ?????????????????????????????????????????????????? | | ?????????????????????????????????????????????????? | | ?????????????????????????????????????????????????? | | ?????????????????????????????????????????????????? | | ?????????????????????????????????????????????????? | | ?????????????????????????????????????????????????? | +----------------------------------------------------+ Best States ------------- Heat Dissipation 42 Energy Generation 18 Energy Capacity 265 Matter Stores 300 Matter Capacity 300 Sight Range 16 Terrain Scan Range 14 Terrain Scan Density 10 Additional Mass Support 6 Armor Coverage 225 Evasion (%) 55 Item Schematics ----------------- Ion Engine | -9/Materials | Scanalyzed Adv. Beam Cannon | -9/Materials | Scanalyzed Robot Schematics ------------------ None Fabricated ------------ Nothing Repaired ---------- Nothing Alien Tech Used ----------------- None Achievements -------------- Quick And Dirty Challenges ------------ None Game ------ Seed GravjetWeaponsBeamcaster Manual? 0 Play Time 00:49:15 Cumulative 50.6 hours Start 2025.09.17 @ 13:48:39 End 2025.09.18 @ 04:51:33 Sessions 3 Manual Loads 0 Difficulty Rogue Special Mode None Game No. 57 Rogue 57 Adventurer 0 Explorer 0 Win Type - Total 0 Types 0/0/0/0/0/0/0/0/0/0 Lore% 17 Gallery% 29 Achievement% 27 Wizard Run 0 Options --------- Layout 1 ASCII 0 Keyboard 0 Movement Numpad Keybinds 0 Fullscreen 1 Font 32/SmallcapsGlow Map View 77x35 Zoom Use 0% Tactical HUD 1 Map Filters NONE Filters NONE Steam 1 RUN: cba690c6-b523-49ed-a346-542d30585b6b